[Event "FIDE Zonal 4-2 Open 2023"]
[Site "Dimbroko"]
[Date "2023.03.27"]
[Round "2.10"]
[White "Egbe, Kossi Thierry"]
[Black "Mambe, Lobognon Anderson Ol"]
[Result "1-0"]
[ECO "C34"]
[WhiteElo "1740"]
[BlackElo "1916"]
[Annotator "TA"]
[PlyCount "73"]
[EventDate "2023.03.25"]
[EventType "swiss"]
[SourceTitle "playchess.com"]
[Source "ChessBase"]
[SourceQuality "1"]
[TimeControl "40/5400+30:1800+30"]

{[%evp 9,73,46,145,145,152,164,170,157,165,161,148,156,154,24,27,-2,32,-31,-30,-37,-33,-75,-72,-86,-20,-221,-150,-225,0,0,-14,-29,14,-42,0,0,33,28,18,0,0,0,0,0,12,0,21,8,8,0,19,6,18,16,88,90,87,68,183,178,732,716,771,745,731,719]} 1. e4 {[%emt 0:00:02]} g6 {[%emt 0:00:08]} 2. f4 {[%emt 0:00:17]} e5 {[%emt 0:00:21]} 3. Nf3 {[%emt 0:00:42]} exf4 {[%emt 0:04:20]} 4. d4 {[%emt 0:00:10]} g5 {[%emt 0:00:10]} 5. Bc4 {[%emt 0:00:38]} d6 {[%emt 0:01:24]} (5... Bg7 $14) 6. h4 $1 $16 {[%emt 0:00:50] [#] White is more active. C34: King's Gambit Accepted: 3 Nf3: 3...Nf6 and 3...d6.} Be7 $146 {[%emt 0:04:30]} ({Predecessor:} 6... g4 7. Ng5 Nh6 8. Bxf4 Qe7 9. O-O f6 10. Nc3 c6 11. e5 dxe5 12. Bxe5 fxe5 {0-1 Berg,E (1402)-Kohlei,R (1951) Rheinland-chT Seniors 1617 2016 (7)}) 7. Nxg5 {[%emt 0:00:59]} Bxg5 {[%emt 0:00:26]} 8. Qh5 {[%emt 0:01:22][%csl Gc4][%cal Rh5f7] White is clearly better.} Qe7 {[%emt 0:00:43]} (8... d5 $2 9. Bxd5 (9. exd5 Qe7+ 10. Qe2 f3 $17 {[%mdl 64] Pin, Discovered Attack}) 9... Bxh4+ 10. Rxh4) 9. hxg5 {[%emt 0:01:33] 0-0 is the strong threat.} Qxe4+ {[%emt 0:00:51]} 10. Kf1 $1 {[%emt 1:28:57]} Be6 {[%emt 1:22:37]} 11. Bxe6 {[%emt 0:00:00]} (11. Bd3 $1 $16 {[%cal Rd3e4]} Qd5 12. Nc3 (12. Bxf4 Qxd4 13. Bd2 Ne7 $15) 12... Qxd4 13. Ne2 (13. Bxh7 $2 {is the wrong capture.} Kf8 $19)) 11... Qxe6 $11 {[%emt 0:00:00]} 12. Bxf4 {[%emt 0:00:00]} Qf5 {[%emt 0:00:00]} 13. Qe2+ {[%emt 0:00:00]} ({Better is} 13. Qf3 $14) 13... Ne7 $15 {[%emt 0:00:00]} 14. g3 {[%emt 0:00:00]} Nbc6 {[%emt 0:00:00]} 15. c3 {[%emt 0:00:00]} O-O-O $1 {[%emt 0:00:00]} 16. Nd2 {[%emt 0:00:00]} Rde8 {[%emt 0:00:00]} (16... Ng6 $17 17. Qf3 Qc2) 17. Nf3 $2 {[%emt 0:00:00]} (17. Qe4 $11 {and White stays safe.}) 17... Nd5 {[%emt 0:00:00]} 18. Qd2 {[%emt 0:00:00] [#]} (18. Nh4 $17 Rxe2 19. Nxf5 Rxb2 20. c4 Nxf4 21. gxf4) 18... Ne3+ $2 {[%emt 0:00:00]} 19. Kg1 $1 $11 {[%emt 0:00:00]} Nc4 {[%emt 0:00:00] Excellent horsemanship.} 20. Qf2 {[%emt 0:00:00]} Re7 {[%emt 0:00:00]} (20... f6 $5 {[%cal Rf6g5]}) 21. Kg2 {[%emt 0:00:00]} ({White should try} 21. b3 $11 Nb6 22. c4) 21... Rg8 {[%emt 0:00:00]} 22. Rae1 {[%emt 0:06:00] Strongly threatening Rxe7.} Nb6 {[%emt 0:00:00]} 23. Rxe7 {[%emt 0:00:30]} Nxe7 {[%emt 0:06:30]} 24. Re1 {[%emt 0:00:00] Wards off f6} Ned5 {[%emt 0:00:00]} 25. Bc1 {[%emt 0:00:00]} f6 {[%emt 0:00:00]} 26. gxf6 {[%emt 0:00:00]} Qxf6 {[%emt 0:00:00]} 27. Nh4 {[%emt 0:00:00][%cal Bf3h4,Bh4f5,Bf5e3][%mdl 32]} Kd7 {[%emt 0:00:00]} (27... Qxh4 $2 28. Re8+ Kd7 29. Rxg8 Qe4+ 30. Kh2 $18) 28. Qxf6 {[%emt 0:00:00]} (28. Qe2 {with more complications.} Qg7 29. Qe6+ Kd8 30. Nf5) 28... Nxf6 {[%emt 0:00:00]} 29. Nf5 {[%emt 0:00:00]} Nc8 {[%emt 0:00:00]} 30. Kf3 {[%emt 0:00:00]} d5 {[%emt 0:00:00]} 31. Bf4 {[%emt 0:00:00]} Ne4 {[%emt 0:00:00] [#]} (31... c6 $11 {keeps the balance.}) 32. Rh1 $1 $16 {[%emt 0:00:00]} Ke6 {[%emt 0:00:00]} 33. Ne3 {[%emt 0:00:00][%cal Oe3d5]} Rg7 {[%emt 0:00:00] [#]} (33... Ncd6 $14) 34. Nxd5 $1 $18 {[%emt 0:00:00][%mdl 576] Decoy} Nxg3 {[%emt 0:00:00]} (34... Ng5+ 35. Bxg5 Kxd5) (34... Nd2+ 35. Bxd2) 35. Nxc7+ {[%emt 0:00:00] White is clearly winning.} (35. Bxg3 Kxd5 36. Rh5+ Kc6 $16) 35... Rxc7 {[%emt 0:00:00]} 36. Rh6+ {[%emt 0:00:00]} ({Not} 36. Kxg3 Rf7 37. Kf3 Ne7 $18) 36... Kf5 {[%emt 0:00:00]} 37. Bxc7 {[%emt 0:00:00] White used his chance.   Weighted Error Value: White=0.25 (precise) /Black=0.39} 1-0

[Event "FIDE Zonal 4-2 Open 2023"]
[Site "Dimbroko"]
[Date "2023.03.27"]
[Round "2.11"]
[White "Amako Marc Arnold"]
[Black "James, Tondo"]
[Result "1-0"]
[ECO "B21"]
[WhiteElo "1647"]
[BlackElo "1867"]
[Annotator "NA RC COMBH"]
[PlyCount "57"]
[EventDate "2023.03.25"]
[EventType "swiss"]
[SourceTitle "playchess.com"]
[Source "ChessBase"]
[SourceQuality "1"]
[TimeControl "40/5400+30:1800+30"]

1. e4 {[%emt 0:00:15]} c5 {[%emt 0:00:01]} 2. d4 {[%emt 0:00:12]} cxd4 {[%emt 0:00:01]} 3. c3 {[%emt 0:00:19]} d3 {[%emt 0:00:02]} 4. Bxd3 {[%emt 0:00:26]} g6 {[%emt 0:00:05]} 5. Nf3 {[%emt 0:00:19]} Bg7 {[%emt 0:00:02]} 6. c4 {[%emt 0:00:37]} Nc6 {[%emt 0:00:09]} 7. Nc3 {[%emt 0:00:18]} Nf6 {[%emt 0:00:48]} 8. O-O {[%emt 0:01:05]} d6 {[%emt 0:00:22]} 9. h3 {[%emt 0:00:09]} O-O {[%emt 0:00:11]} 10. Be3 {[%emt 0:00:14]} b6 {[%emt 0:00:39]} 11. Rc1 {[%emt 0:00:53]} Bb7 {[%emt 0:00:15]} 12. Qe2 {[%emt 0:00:31]} Nd7 {[%emt 0:01:24]} 13. b3 {[%emt 0:00:46]} h6 {[%emt 0:02:39]} 14. Rfd1 {[%emt 0:00:12]} Rc8 {[%emt 0:01:42]} 15. Bb1 {[%emt 0:00:44]} Qc7 {[%emt 0:01:03]} 16. Nd5 {[%emt 0:00:48]} Qb8 {[%emt 0:00:15]} 17. Nd4 {[%emt 0:03:50]} Rce8 {[%emt 0:00:49]} 18. f4 {[%emt 0:03:03]} Nxd4 {[%emt 0:05:20]} 19. Bxd4 {[%emt 0:00:11]} Bxd4+ {[%emt 0:04:32]} 20. Rxd4 {[%emt 0:01:18]} e6 {[%emt 0:03:51]} 21. Nc3 {[%emt 0:01:39]} d5 {[%emt 0:01:51]} 22. e5 {[%emt 0:00:34]} Qc7 {[%emt 0:09:08]} 23. Qd2 {[%emt 0:04:42]} Rc8 {[%emt 0:22:34]} 24. Nb5 {[%emt 0:04:30]} Qb8 {[%emt 0:01:33]} 25. Nd6 {[%emt 0:05:35]} Rc7 {[%emt 0:03:08]} 26. f5 {[%emt 0:00:09]} exf5 {[%emt 0:02:09]} 27. Qxh6 {[%emt 0:01:10]} Qd8 {[%emt 0:23:16]} 28. Nxf5 {[%emt 0:03:39]} gxf5 {[%emt 0:01:19]} 29. Bxf5 {[%emt 0:00:19]} 1-0

[Event "FIDE Zonal 4-2 Open 2023"]
[Site "Dimbroko"]
[Date "2023.03.27"]
[Round "2.13"]
[White "Koita Idrissa"]
[Black "Daniel Kolliemelen"]
[Result "0-1"]
[ECO "C01"]
[WhiteElo "1611"]
[BlackElo "1805"]
[Annotator "NA COMBH"]
[PlyCount "70"]
[EventDate "2023.03.25"]
[EventType "swiss"]
[SourceTitle "playchess.com"]
[Source "ChessBase"]
[SourceQuality "1"]
[TimeControl "40/5400+30:1800+30"]

1. e4 {[%emt 0:00:11]} e6 {[%emt 0:00:31]} 2. Nf3 {[%emt 0:00:25]} d5 {[%emt 0:00:26]} 3. exd5 {[%emt 0:01:12]} exd5 {[%emt 0:01:07]} 4. d4 {[%emt 0:00:35]} Bd6 {[%emt 0:00:20]} 5. Nc3 {[%emt 0:00:44]} c6 {[%emt 0:00:35]} 6. a3 {[%emt 0:00:46]} Ne7 {[%emt 0:00:09]} 7. Bd3 {[%emt 0:02:34]} Bf5 {[%emt 0:02:33]} 8. h3 {[%emt 0:01:16]} Nd7 {[%emt 0:01:09]} 9. g4 {[%emt 0:00:43]} Bg6 {[%emt 0:00:19]} 10. h4 {[%emt 0:01:01]} Qc7 {[%emt 0:00:27]} 11. h5 {[%emt 0:01:54]} Bxd3 {[%emt 0:00:52]} 12. Qxd3 {[%emt 0:00:18]} Bf4 {[%emt 0:02:54]} 13. Be3 {[%emt 0:00:34]} O-O-O {[%emt 0:05:51]} 14. O-O-O {[%emt 0:00:16]} f6 {[%emt 0:00:21]} 15. Nd2 {[%emt 0:00:51]} Rde8 {[%emt 0:00:34]} 16. Nb3 {[%emt 0:00:47]} b5 {[%emt 0:01:50]} 17. Na2 {[%emt 0:01:40]} a5 {[%emt 0:03:43]} 18. Qc3 {[%emt 0:03:33]} a4 {[%emt 0:01:35]} 19. Nc5 {[%emt 0:01:41]} Nxc5 {[%emt 0:01:17]} 20. Qxc5 {[%emt 0:00:40]} Kb7 {[%emt 0:00:23]} 21. Rhg1 {[%emt 0:03:55]} Nc8 {[%emt 0:01:04]} 22. Rde1 {[%emt 0:01:31]} Re4 {[%emt 0:03:37]} 23. Nb4 {[%emt 0:02:02]} Rhe8 {[%emt 0:06:58]} 24. Kd2 {[%emt 0:01:58]} Na7 {[%emt 0:04:01]} 25. Nxd5 {[%emt 0:01:23]} cxd5 {[%emt 0:03:43]} 26. Qxd5+ {[%emt 0:00:37]} Ka6 {[%emt 0:04:06]} 27. Qf5 {[%emt 0:02:25]} Rxd4+ {[%emt 0:05:30]} 28. Kc1 {[%emt 0:01:21]} Red8 {[%emt 0:01:18]} 29. Qxh7 {[%emt 0:00:52]} R8d7 {[%emt 0:00:55]} 30. Rd1 {[%emt 0:02:03]} Qe5 {[%emt 0:01:22]} 31. Rge1 {[%emt 0:01:17]} Rxd1+ {[%emt 0:01:55]} 32. Rxd1 {[%emt 1:05:25]} Bxe3+ {[%emt 0:45:05]} 33. fxe3 {[%emt 0:00:00]} Qxe3+ {[%emt 0:00:00]} 34. Kb1 {[%emt 0:01:00]} Rxd1+ {[%emt 0:01:00]} 35. Ka2 {[%emt 0:00:00]} Qc1 {[%emt 0:00:00]} 0-1

[Event "FIDE Zonal 4-2 Open 2023"]
[Site "Dimbroko"]
[Date "2023.03.27"]
[Round "3.1"]
[White "Ortega Amarelle, Mariano"]
[Black "Manan, Yoboue Hermann"]
[Result "1-0"]
[ECO "E15"]
[WhiteElo "2472"]
[BlackElo "2015"]
[Annotator "TA"]
[PlyCount "160"]
[EventDate "2023.03.25"]
[EventType "swiss"]
[EventCountry "IVO"]
[SourceTitle "playchess.com"]
[Source "ChessBase"]
[SourceQuality "1"]
[TimeControl "40/5400+30:1800+30"]

{[%evp 16,160,19,7,22,0,0,-22,4,0,4,0,7,0,6,-35,40,-41,-42,-48,-54,-43,-46,-44,-47,-58,-21,-55,-48,-53,-49,-59,-47,-44,-52,-48,-39,-36,-46,-45,-54,-32,-5,-61,-33,-24,-33,-39,-33,-42,-42,-72,-11,-14,31,-90,-72,-73,-86,-229,-231,-259,-154,-258,-237,-245,-230,-243,-231,-307,-300,-358,-342,-360,-366,-375,-370,-695,-412,-339,-227,-272,-276,-308,-223,-237,-139,-207,-210,-274,-256,-272,-307,-297,-241,-220,-119,-147,-132,-335,-132,-278,-268,-335,87,89,86,0,312,319,322,311,328,345,354,346,339,338,335,337,328,313,514,463,428,358,575,557,972,970,916,759,701,691,10758,10758,29974,29975,29972,29973,29978,29979,29980,29981,29979,29980,29974]} 1. d4 {[%emt 0:00:05]} Nf6 {[%emt 0:00:17]} 2. c4 {[%emt 0:00:16]} e6 {[%emt 0:00:18]} 3. Nf3 {[%emt 0:00:13]} b6 {[%emt 0:01:18]} 4. g3 {[%emt 0:00:11]} Ba6 {[%emt 0:00:24]} 5. Qa4 {[%emt 0:05:24]} c5 {[%emt 0:04:04]} 6. dxc5 {[%emt 0:00:28]} Bxc5 {[%emt 0:00:14]} 7. Bg2 {[%emt 0:00:06]} Bb7 {[%emt 0:00:22]} 8. O-O {[%emt 0:00:08]} O-O {[%emt 0:00:24]} 9. Nc3 {[%emt 0:00:06]} h6 {[%emt 0:02:08] E15: Queen's Indian: 4 g3 sidelines, 4 g3 Ba6 and 4 g3 Bb7 early deviations.} 10. Rd1 {[%emt 0:05:58] [#]} Ng4 $146 {[%emt 0:10:04]} ({Predecessor:} 10... Qe7 11. Qc2 d5 12. cxd5 Nxd5 13. Nxd5 Bxd5 14. a3 a5 15. e4 Bb7 16. Bd2 Nc6 17. Bc3 {1-0 Hansen,C (2270)-Khamrakulov,I (2416) EU-ch Online 2300+ Final 2020 (6)}) 11. Rf1 {[%emt 0:05:37]} Qc8 {[%emt 0:01:40] The position is equal.} 12. Bf4 {[%emt 0:17:58]} Nc6 {[%emt 0:10:17]} 13. h3 {[%emt 0:07:01]} Nf6 {[%emt 0:01:36]} 14. Rad1 {[%emt 0:05:53]} Re8 {[%emt 0:09:16]} 15. Be5 {[%emt 0:24:53]} Be7 {[%emt 0:22:51]} (15... Nxe5 $15 16. Nxe5 Bxg2 17. Kxg2 Qb7+ 18. f3 d5) 16. Rc1 {[%emt 0:18:33]} (16. Bxf6 $1 $14 gxf6 17. Qc2) 16... Nxe5 $15 {[%emt 0:15:23]} 17. Nxe5 {[%emt 0:00:02]} Bxg2 {[%emt 0:00:47]} 18. Kxg2 {[%emt 0:00:02]} Qc7 {[%emt 0:00:38]} 19. Nf3 {[%emt 0:00:31]} Qb7 {[%emt 0:00:35] Wards off e4} 20. Rfd1 {[%emt 0:00:09][%cal Oe2e4]} Red8 {[%emt 0:00:53]} 21. Qb3 {[%emt 0:02:38]} Rac8 {[%emt 0:00:54]} 22. Rc2 {[%emt 0:01:21]} Rc5 {[%emt 0:01:33]} 23. Na4 {[%emt 0:00:39]} Rc7 {[%emt 0:00:30]} 24. Nc3 {[%emt 0:03:04]} Rdc8 {[%emt 0:03:21]} 25. Nb5 {[%emt 0:00:04]} Rc5 {[%emt 0:01:04]} 26. Rdc1 {[%emt 0:00:16]} a6 {[%emt 0:01:12]} (26... Rh5 {with more complications.} 27. Qd3 Ne4 28. Rd1 Rd8) 27. Nbd4 {[%emt 0:00:09]} Ne4 {[%emt 0:03:07]} (27... Rh5 {keeps more tension.} 28. Qd3 Ne4 29. Nb3 d6) 28. Qd3 {[%emt 0:01:41]} Bg5 {[%emt 0:04:38]} 29. Rd1 {[%emt 0:00:17]} (29. Nxg5 $11 Rxg5 30. Kg1) 29... d5 {[%emt 0:01:34]} 30. cxd5 {[%emt 0:00:57]} Qxd5 {[%emt 0:01:15]} 31. Rxc5 {[%emt 0:00:16]} Nxc5 {[%emt 0:00:22]} 32. Qb1 {[%emt 0:00:05][%cal Od4b5]} Rd8 {[%emt 0:00:12] And now ...e5 would win.} 33. b4 {[%emt 0:00:42]} Na4 {[%emt 0:00:04]} (33... e5 $1 $17 {Threatens to win with ...Ne6.} 34. bxc5 bxc5 {[%mdl 64] Pin}) 34. Rd3 {[%emt 0:00:21]} (34. Qc2 {looks sharper.} b5 35. h4 Bf6 36. Rd2) 34... Qb7 {[%emt 0:00:28]} 35. Nb3 {[%emt 0:00:50]} (35. Nxe6 $1 $14 {keeps the upper hand.} fxe6 36. Rxd8+ Bxd8 37. Qd1) 35... Rc8 $1 $17 {[%emt 0:00:23]} 36. a3 {[%emt 0:00:34]} Bf6 {[%emt 0:00:05]} 37. Rd6 {[%emt 0:00:49]} (37. Nbd2 $17 {was necessary.}) 37... Nc3 $19 {[%emt 0:01:35][%csl LRb1,LRe2]} 38. Qe1 {[%emt 0:00:36]} e5 {[%emt 0:00:34]} (38... Nb5 $19 39. Rd3 Nxa3) 39. Kh2 {[%emt 0:00:32]} (39. e3 $17) 39... Nb5 {[%emt 0:00:50][%csl LRa3,LRd6]} 40. Rd2 {[%emt 0:00:24]} Nxa3 {[%emt 0:00:56]} 41. Qd1 {[%emt 0:30:34]} Nb5 {[%emt 0:31:30]} 42. Qb1 {[%emt 0:00:00]} g6 {[%emt 0:00:00]} 43. Ne1 {[%emt 0:00:00]} Nc3 {[%emt 0:00:00]} 44. Qd3 {[%emt 0:00:00]} e4 {[%emt 0:02:54] Wards off Qf3} 45. Qd7 {[%emt 0:00:00]} Rc7 {[%emt 0:00:00]} (45... Qxd7 $2 46. Rxd7 Nxe2 47. Nd2 $19) 46. Qg4 {[%emt 0:00:00]} (46. Qe8+ Kg7 47. Nd4) 46... Kg7 {[%emt 0:00:00]} 47. e3 {[%emt 0:02:02]} Nb5 {[%emt 0:00:00]} 48. Ng2 {[%emt 0:00:47]} h5 {[%emt 0:00:00]} 49. Qd1 {[%emt 0:00:51]} Be5 {[%emt 0:00:00]} 50. Nd4 {[%emt 0:00:27]} Nd6 {[%emt 0:00:00]} ({Black should play} 50... Nc3 $19 51. Qa1 Qc8) 51. Ne2 {[%emt 0:00:53]} (51. Nf4 $17) 51... Nc4 {[%emt 0:00:00]} 52. Rd8 {[%emt 0:00:25]} Bf6 {[%emt 0:00:00]} 53. Rd5 {[%emt 0:00:26]} Nb2 {[%emt 0:00:00]} 54. Qb3 {[%emt 0:00:24]} b5 {[%emt 0:00:00] Hoping for ...Nd3.} 55. Ngf4 {[%emt 0:00:14] [#]} Nc4 {[%emt 0:00:00]} (55... Rc4 $1 $19 {[%cal Ob2d3] aiming for ...Nd3!} 56. Rd2 Nd3 57. Nxd3 exd3) 56. Qd1 {[%emt 0:00:24]} Ne5 {[%emt 0:00:35][%cal Oe5d3]} 57. Kg2 $2 {[%emt 0:01:44]} (57. Nd4 $17 {was worth a try.}) 57... Rc4 $2 {[%emt 0:00:24]} (57... Nd3 $19 {[%cal Oc7c2] and Black stays clearly on top. Strongly threatening ...Rc2!} 58. Rd6 Be5) 58. Rd6 {[%emt 0:00:00]} (58. Nd4 $17 {was called for.}) 58... Be7 {[%emt 0:01:39]} (58... Rxb4 59. Rxf6 (59. Nd5 Be7 $18) 59... Nd3 60. Qa1 $18) 59. Rd5 {[%emt 0:00:00]} Nc6 {[%emt 0:01:16]} (59... Nd3 $1 $19 {...Qc6 would be deadly.} 60. Kg1 Bf6) 60. Rd7 $36 {[%emt 0:00:00][%mdl 2048] White is really pushing.} Qc8 {[%emt 0:01:07]} 61. Qd5 {[%emt 0:00:16] White is more active.} Qe8 $2 {[%emt 0:01:50][%mdl 8192] Black is now going downhill.} (61... Bxb4 $2 62. Qxf7+ Kh8 63. Nxg6#) (61... Rxb4 $11 62. Rxe7 {[%mdl 64] Decoy} Nxe7 63. Qe5+ Kf8) 62. Nd4 $18 {[%emt 0:00:58][%mdl 64] Deflection} Nxd4 {[%emt 0:00:48]} (62... Nxb4 $2 63. Qe5+ (63. Qxe4 $2 {is the wrong capture.} Qxd7 64. Nde6+ Kg8 $19) 63... Kg8 64. Rxe7 $18) 63. Qe5+ {[%emt 0:00:32]} Kh7 {[%emt 0:00:59]} 64. Rxe7 {[%emt 0:00:14]} ({Inferior is} 64. Qxe7 Qxe7 65. Rxe7 Nf3 $11) 64... Nc6 {[%emt 0:00:09]} 65. Rxe8 {[%emt 0:00:14][%csl Ge8][%cal Re5h8]} Nxe5 {[%emt 0:00:45]} 66. Rxe5 {[%emt 0:00:08]} Rxb4 {[%emt 0:00:10][%mdl 4096] Endgame KRN-KR} 67. Nd5 {[%emt 0:00:30]} Rc4 {[%emt 0:00:48]} 68. Rxe4 {[%emt 0:00:45][%mdl 64] Decoy} Rxe4 $2 {[%emt 0:00:16] KR-KN} (68... Rc5 69. Nf4 a5) 69. Nf6+ {[%emt 0:00:06]} Kg7 {[%emt 0:00:21]} 70. Nxe4 {[%emt 0:00:05] KN-KP} a5 $2 {[%emt 0:00:33]} (70... f5 71. Nd2 a5) 71. Kf3 {[%emt 0:00:40]} a4 {[%emt 0:00:30]} 72. Nc3 {[%emt 0:00:21]} a3 {[%emt 0:00:14] [#]} 73. Na2 $1 {[%emt 0:00:07]} (73. Nxb5 $2 {loses.} a2 74. Ke2 a1=Q $19) 73... Kf6 {[%emt 0:01:34]} 74. Ke4 {[%emt 0:00:12]} g5 {[%emt 0:00:30]} 75. g4 {[%emt 0:02:22]} hxg4 {[%emt 0:00:20]} 76. hxg4 {[%emt 0:00:06] White mates.} Ke6 {[%emt 0:01:12]} 77. f4 {[%emt 0:00:48]} gxf4 {[%emt 0:00:00]} 78. exf4 {[%emt 0:00:07]} f6 {[%emt 0:00:23]} 79. Nb4 {[%emt 0:00:19]} Kd6 {[%emt 0:00:04]} 80. Kd4 {[%emt 0:00:11]} Ke6 {[%emt 0:01:33] Weighted Error Value: White=0.38/Black=0.35} 1-0

[Event "FIDE Zonal 4-2 Open 2023"]
[Site "Dimbroko"]
[Date "2023.03.27"]
[Round "3.2"]
[White "Cogan, Nicolas"]
[Black "Abdulraheem Abdulrahman Akinto"]
[Result "1/2-1/2"]
[ECO "D45"]
[WhiteElo "2013"]
[BlackElo "2302"]
[Annotator "TA"]
[PlyCount "41"]
[EventDate "2023.03.25"]
[EventType "swiss"]
[EventCountry "IVO"]
[SourceTitle "playchess.com"]
[Source "ChessBase"]
[SourceQuality "1"]
[TimeControl "40/5400+30:1800+30"]

{[%evp 19,41,49,45,43,31,18,14,15,22,21,49,-42,-19,-28,-36,-21,0,0,208,0,0,0,0,0]} 1. d4 {[%emt 0:00:02]} d5 {[%emt 0:00:09]} 2. c4 {[%emt 0:00:03]} c6 {[%emt 0:00:07]} 3. Nf3 {[%emt 0:00:07]} Nf6 {[%emt 0:00:11]} 4. e3 {[%emt 0:00:03]} e6 {[%emt 0:00:29]} 5. Nc3 {[%emt 0:00:17]} Nbd7 {[%emt 0:00:29]} 6. Qc2 {[%emt 0:00:34]} Bd6 {[%emt 0:00:13]} 7. b3 {[%emt 0:01:01]} O-O {[%emt 0:01:21]} 8. Be2 {[%emt 0:00:28]} Qe7 {[%emt 0:05:16]} 9. O-O {[%emt 0:01:46]} dxc4 {[%emt 0:01:17]} 10. bxc4 {[%emt 0:00:46]} e5 {[%emt 0:00:13]} 11. Bd3 {[%emt 0:07:44] D45: Semi-Slav: 5 e3.} Re8 {[%emt 0:03:17]} 12. Ng5 {[%emt 0:24:10][%cal Rd3h7]} h6 {[%emt 0:11:28]} 13. Nge4 {[%emt 0:03:08]} Nxe4 {[%emt 0:00:09]} 14. Nxe4 {[%emt 0:02:34] [#]} Nf6 $146 {[%emt 0:00:24]} ({Predecessor:} 14... Bc7 15. Ng3 Nf6 16. Bf5 exd4 17. exd4 Bxg3 18. hxg3 Bxf5 19. Qxf5 Qe4 20. Qxe4 Rxe4 {1-0 Le Goff,D (2291)-Bilan,D (2303) Titled Tuesday intern op 22nd Nov Early blitz 2022 (4)}) 15. f3 {[%emt 0:12:21]} (15. Nxd6 $14 Qxd6 16. dxe5 Qxe5 17. Bb2) 15... Nxe4 $15 {[%emt 0:07:42]} 16. Bxe4 {[%emt 0:11:23]} (16. fxe4 {is more complex.} exd4 17. exd4 Qh4 18. g3) 16... exd4 {[%emt 0:10:37]} 17. exd4 {[%emt 0:00:13]} ({But not} 17. Bh7+ $2 Kh8 18. exd4 Qf6 $19) 17... Bxh2+ {[%emt 0:07:27][%mdl 64] [#] Decoy} 18. Kxh2 {[%emt 0:01:00]} Qh4+ $1 {[%emt 0:00:43]} 19. Kg1 {[%emt 0:00:02] Hoping for Qf2.} f5 $1 {[%emt 0:00:10]} 20. Bd3 {[%emt 0:22:05] And now Qf2 would win.} Qxd4+ {[%emt 0:00:52]} 21. Kh1 {[%emt 0:05:39] Weighted Error Value: White=0.22 (precise) /Black=0.04 (flawless)} (21. Kh2 $5 Qh4+ $8 22. Kg1 Qd4+ 23. Kh2 Qh4+ 24. Kg1 Qd4+ $11) 1/2-1/2